Cogmind - Beta 15 @@@ ROGUE MODE // 2025.05.24 @ 17:46:47 Player: celerysam Result: Destroyed by P-70 Sage with Tesla Rifle Performance ------------- Evolutions (6) 3000 Regions Visited (9) 1800 Robots Destroyed (93) 465 Value Destroyed (3400) 3400 Prototype IDs (16) 320 Alien Tech Used (0) 0 Bonus (332) 332 TOTAL SCORE: 9317 Bonus ------- High Alert Combat Kills 51 Follower Combat Kills 606 Friendly Fire -325 Cogmind --------- Core Integrity 0/1150 Matter 31/300 Energy 12/100 System Corruption 10% Temperature Cool (0) Movement Core (50) Location -4/Factory Parts ------- > --- POWER (3) -------- (None) > --- PROPULSION (6) --- Improved Gyrokinetic Inverter > --- UTILITY (6) ------ Advanced Signal Interpreter Improved Target Analyzer > --- WEAPON (4) ------- (None) > --- INVENTORY (5) ---- Damper Plating System Shield Peak State ------------ > --- POWER ------------ Backup Power III Neutrino Core Antimatter Reactor > --- PROPULSION ------- Armored Leg Wheel Wheel Compact Wheel Armored Wheel > --- UTILITY ---------- High-capacity Storage Unit Advanced Sensor Array Advanced Signal Interpreter Transport Network Coupler Improved Target Analyzer Hardened Medium Armor Plating > --- WEAPON ----------- Enhanced Gauss Cannon Enhanced Gauss Cannon Linear Accelerator Plasma Sword > --- INVENTORY -------- Gravmag Array Gravmag Array Improved Antigrav System Improved Gyrokinetic Inverter Improved Gyrokinetic Inverter Field Propulsion Drive Thermal Generator Layered Medium Armor Plating Damper Plating System Shield Tesla Rifle Heavy Beamcaster Tesla Bomb Launcher Improved Remote Datajack Lance [Rating: 84] Favorites ----------- Power Meta Core Engine Ion Engine Power Core Meta Core Reactor Reinforced Antimatter Reactor Propulsion Compact Wheel Treads Light Treads Leg Armored Leg Wheel Compact Wheel Hover Unit Improved Gyrokinetic Inverter Flight Unit Improved Surge Thruster Utility High-capacity Storage Unit Device Improved Heat Sink Storage High-capacity Storage Unit Processor Improved Target Analyzer Protection Hardened Medium Armor Plating Weapon Enhanced Gauss Cannon Energy Gun Medium Laser Energy Cannon Heavy Particle Cannon Ballistic Gun Battle Rifle Ballistic Cannon Enhanced Gauss Cannon Launcher Grenade Launcher Special Weapon Mining Laser Slashing Weapon Plasma Sword Piercing Weapon Lance Build | -11 -10 -10 -8 -7 -6 -5 -5 -5 -4 ------- Run | Yrd Mat Sub Mat Fac Fac Fac Was Fac Fac Slots Evolved 12 | . . . 4 2 2 2 . . 2 Power 2 | . . . . 1 . . . . 1 Propulsion 4 | . . . 2 . 1 1 . . . Utility 4 | . . . 2 1 . 1 . . . Weapon 2 | . . . . . 1 . . . 1 Parts Attached 128 | 6 12 16 14 9 23 23 7 5 13 Power 14 | 1 1 3 1 2 3 . 1 . 2 Engine 6 | 1 1 2 . 1 1 . . . . Core 6 | . . 1 1 1 1 . 1 . 1 Reactor 2 | . . . . . 1 . . . 1 Propulsion 41 | 2 3 4 6 1 13 3 2 2 5 Treads 4 | . . 2 2 . . . . . . Leg 5 | 2 . . 1 . 2 . . . . Wheel 27 | . 3 2 3 1 10 3 2 2 1 Hover 4 | . . . . . . . . . 4 Flight 1 | . . . . . 1 . . . . Utility 32 | 1 5 1 5 2 3 7 3 2 3 Device 17 | . 3 1 4 2 2 4 . . 1 Storage 5 | 1 2 . . . 1 . . 1 . Processor 3 | . . . . . . 1 1 . 1 Hackware . | . . . . . . . . . . Protection 7 | . . . 1 . . 2 2 1 1 Artifact . | . . . . . . . . . . Weapon 41 | 2 3 8 2 4 4 13 1 1 3 Energy Gun 13 | 1 1 1 1 2 2 4 . . 1 Energy Cannon 4 | . 1 . . . 1 2 . . . Ballistic Gun 5 | 1 . 3 1 . . . . . . Ballistic Cannon 10 | . 1 1 . 1 1 2 1 1 2 Launcher 3 | . . 1 . 1 . 1 . . . Special Weapon 3 | . . 2 . . . 1 . . . Impact Weapon . | . . . . . . . . . . Slashing Weapon 2 | . . . . . . 2 . . . Piercing Weapon 1 | . . . . . . 1 . . . Special Melee Weapon . | . . . . . . . . . . Unidentified Prototypes 5 | . . . . 1 . 4 . . . Parts Lost 75 | . 5 12 3 1 23 9 . 4 18 Power 9 | . 1 3 . . 2 1 . . 2 Propulsion 30 | . 2 2 2 . 10 3 . 4 7 Utility 14 | . . 1 . . 5 4 . . 4 Weapon 22 | . 2 6 1 1 6 1 . . 5 Highest Loss Streak 17 | . 2 4 2 1 16 5 . 3 17 To Critical Strikes 2 | . . . . . 2 . . . . Average Backups 17 | 4 14 18 19 19 19 12 17 15 14 Power 1 | . 3 2 2 2 2 2 . . . Propulsion 3 | 3 4 4 4 3 4 1 3 2 4 Utility 4 | . 3 4 3 3 4 4 5 5 4 Weapon 6 | . 4 7 7 7 6 3 7 5 3 Tool/Special . | . . . . . . . . . . Unused Backups 28 | . . 1 2 2 3 4 4 4 8 Power 5 | . . . 1 1 1 2 . . . Propulsion 7 | . . 1 . . . . . 3 3 Utility 7 | . . . . . . 1 2 . 4 Weapon 7 | . . . 1 1 1 . 2 1 1 Tool/Special 2 | . . . . . 1 1 . . . Average Slot Usage (%) 89 | . 86 97 81 89 94 64 87 96 83 Engine 6 | . 13 9 . 3 3 2 4 5 8 Core 4 | . . 4 7 8 6 4 5 4 1 Treads 9 | . . 23 1 12 2 . . . . Leg 2 | . 1 . . . . 10 5 5 4 Wheel 12 | . 17 2 20 12 30 5 17 20 18 Device 13 | . 13 14 20 21 23 14 5 5 4 Storage 9 | . 14 14 7 6 6 4 5 5 4 Processor 2 | . . . . . . . 8 11 14 Protection 2 | . . . 3 6 1 5 6 11 5 Energy Gun 4 | . 13 3 4 6 7 2 . . . Energy Cannon 1 | . 4 . . . 2 3 . . . Ballistic Gun 4 | . 3 6 16 10 . . . . . Ballistic Cannon 7 | . 3 10 . . 5 . 11 11 13 Special Weapon 1 | . . 5 . . . . . . . Slashing Weapon 1 | . . . . . . 1 5 5 4 Peak Build Rating 84 | 6 9 19 42 52 70 67 67 69 84 Average Rating 36 | 3 7 14 36 46 60 54 61 66 70 On Entrance 32 | . 6 8 19 41 49 31 46 67 61 Naked Turns . | . . . . . . . . . . Heaviest Build 114 | 14 52 53 61 78 97 95 90 90 114 Greatest Support 80 | 20 26 40 80 43 72 48 64 64 52 Greatest Overweight (x) 9 | . 5 5 3 7 8 9 2 5 5 Average Overweight (x) 1 | . 2 1 1 3 1 3 1 1 1 Largest Inventory Capacity 25 | 8 20 20 20 20 20 20 20 25 20 Average Capacity 19 | 6 17 20 20 20 20 18 20 20 19 Most Carried 20 | 6 19 20 20 20 20 17 20 20 20 Average Carried 17 | 4 14 18 19 19 19 12 18 19 19 Final Capacity 20 | 8 20 20 20 20 20 20 20 20 5 Final Carried 20 | 6 19 18 20 20 13 17 20 20 5 Class Distribution -------------------- 53% | Mutant 13% | Scavenger-Mutant 8% | Scavenger-Tank 7% | Infiltrator-Mutant 5% | Scavenger-Assassin 4% | Infiltrator-Skirmisher Dominant Class ---------------- Mutant | -10/Materials Mutant | -10/Subcaves Scavenger-Tank | -8/Materials Scavenger-Tank | -7/Factory Infiltrator-Skirmisher | -6/Factory Infiltrator-Mutant | -5/Factory Scavenger-Mutant | -5/Waste Scavenger-Mutant | -5/Factory Scavenger-Assassin | -4/Factory Resources | -11 -10 -10 -8 -7 -6 -5 -5 -5 -4 ----------- Run | Yrd Mat Sub Mat Fac Fac Fac Was Fac Fac Matter Collected 3071 | 222 232 541 363 64 460 434 233 377 145 Remotely . | . . . . . . . . . . Salvage Created 3813 | . 746 256 375 140 1082 740 . 417 57 Parts 210 | . 38 27 23 6 58 35 . 18 5 Haulers Intercepted 3 | . 1 . . . . 1 . 1 . Recyclers Shooed 2 | . . . . . 1 1 . . . Parts Field Recycled . | . . . . . . . . . . Retrieved Matter . | . . . . . . . . . . Parts Self-Destructed 21 | . . 21 . . . . . . . Prevented . | . . . . . . . . . . Kills | -11 -10 -10 -8 -7 -6 -5 -5 -5 -4 ------- Run | Yrd Mat Sub Mat Fac Fac Fac Was Fac Fac Combat Hostiles Destroyed 71 | . 15 11 6 3 18 8 . 6 4 Guns 24 | . 4 5 6 3 3 3 . . . Cannons 36 | . 11 3 . . 11 3 . 4 4 AOE 9 | . . 3 . . 4 . . 2 . Classes Destroyed 15 | . 3 2 2 1 6 . . 1 . Worker 2 | . . . . . 2 . . . . Builder 4 | . . . . . 2 . . 2 . Tunneler 1 | . . . . . 1 . . . . Hauler 3 | . 1 . . . . 1 . 1 . Recycler 3 | . . . . . 1 2 . . . Operator 2 | . . . 1 . 1 . . . . Watcher 5 | . 2 . 1 . 1 1 . . . Swarmer 16 | . . 2 . . 3 4 . 3 4 Grunt 32 | . 15 . 4 . 11 . . 2 . Brawler 1 | . . . . . . . . 1 . Sentry 4 | . . . 2 1 . 1 . . . Specialist 2 | . . . . . 2 . . . . Programmer 6 | . . . . 2 1 3 . . . Heavy 1 | . . . . . 1 . . . . Subdweller 9 | . . 9 . . . . . . . Wasp 1 | . . . . . . . . 1 . Thug 1 | . . . . . . . . 1 . Best Kill Streak 5 | . 2 3 3 1 5 4 . 3 4 Combat Bots Only 4 | . 2 3 3 1 3 4 . 3 4 Max Kills in Single Turn 3 | . 1 1 1 1 3 1 . 3 1 Gunslinging . | . . . . . . . . . . Exploded 2 | . . 1 . . 2 . . 2 . Melee . | . . . . . . . . . . Uniques/NPCs Destroyed . | . . . . . . . . . . Combat | -11 -10 -10 -8 -7 -6 -5 -5 -5 -4 -------- Run | Yrd Mat Sub Mat Fac Fac Fac Was Fac Fac Hostile Shots Fired 906 | . 70 83 50 23 248 117 . 70 245 Missed 284 | . 28 25 15 7 72 28 . 23 86 Hits 622 | . 42 58 35 16 176 89 . 47 159 Melee 3 | . . . . . . . . 3 . Projectile 619 | . 42 58 35 16 176 89 . 44 159 Critical Strikes 26 | . . 1 1 . 6 4 . 1 13 Part Disruptions 3 | . . . . . . 1 . . 2 Damage Taken 12193 | . 492 1135 532 198 3703 1843 . 972 3318 Core 2418 | . 79 154 124 26 678 133 . 70 1154 Absorbed by Shields . | . . . . . . . . . . Redirected to Shielding 53 | . . . . . . 53 . . . Regen/Repaired (Parts) 493 | . . . . . . . 188 211 94 Core Remaining (%) 63 | 100 . 6 77 96 20 . . 79 . Volleys Fired 286 | . 58 70 26 10 54 30 . 25 13 Largest 3 | . 2 2 3 3 3 3 . 2 3 Hottest 195 | . 110 130 103 131 181 195 . 94 148 Shots Fired 613 | . 107 109 62 27 152 70 1 50 35 Gun 290 | . 66 38 62 22 79 23 . . . Cannon 287 | . 41 36 . 5 72 47 1 50 35 Launcher 9 | . . 8 . . 1 . . . . Special 27 | . . 27 . . . . . . . Kinetic 307 | . 22 63 48 17 53 18 1 50 35 Thermal 176 | . 65 30 . 5 47 29 . . . Explosive 9 | . . 8 . . 1 . . . . Electromagnetic 121 | . 20 8 14 5 51 23 . . . Robot Hit Streak 16 | . 7 10 6 9 16 10 . 3 5 Robot Miss Streak 5 | . 5 4 4 4 5 5 1 5 5 Penetration Max 1 | . . . . . . . . 1 1 Secondary Targets . | . . . . . . . . . . Shots Hit Robots 342 | . 60 48 37 18 97 47 . 25 10 Core Hits 175 | . 28 19 18 7 58 17 . 23 5 Critical Kills . | . . . . . . . . . . Critical Parts Destroyed . | . . . . . . . . . . Critical Strikes 26 | . 5 2 1 . 4 3 . 7 4 Burn 7 | . 4 . . . 3 . . . . Blast 16 | . . 2 . . 1 2 . 7 4 Corrupt 2 | . 1 . 1 . . . . . . Impale 1 | . . . . . . 1 . . . Melee Attacks 36 | . . . . . . 13 9 9 5 Impact . | . . . . . . . . . . Slashing 26 | . . . . . . 3 9 9 5 Piercing 10 | . . . . . . 10 . . . Sneak Attacks 6 | . . . . . . 4 . 2 . Combat Hostiles . | . . . . . . . . . . Follow-up Attacks . | . . . . . . . . . . Damage Inflicted 9501 | . 913 1195 623 384 2995 1610 . 1340 441 Guns 2783 | . 471 390 623 248 807 244 . . . Cannons 4710 | . 442 347 . 90 1431 968 . 991 441 Explosions 1443 | . . 458 . 46 755 37 . 147 . Melee 563 | . . . . . . 361 . 202 . Ramming 2 | . . . . . 2 . . . . Kinetic 4383 | . 189 631 468 243 975 445 . 991 441 Thermal 1820 | . 602 . . 93 602 523 . . . Explosive 1174 | . . 458 . . 716 . . . . Electromagnetic 1559 | . 122 106 155 48 700 281 . 147 . Impact . | . . . . . . . . . . Slashing 202 | . . . . . . . . 202 . Piercing 361 | . . . . . . 361 . . . Highest Corruption 18 | . 2 2 . 1 . 14 14 18 9 Average Corruption 5 | . 2 2 . 1 . 7 14 15 4 Corruption Purged . | . . . . . . . . . . Corruption Blocked . | . . . . . . . . . . Effects 124 | . 5 48 . . . 14 21 35 1 Message Errors 16 | . 2 7 . . . 1 2 4 . Matter Fused 31 | . . 12 . . . 5 4 10 . Heat Flow Errors 13 | . . 6 . . . 1 4 2 . Energy Discharges 20 | . . 9 . . . 3 2 5 1 Parts Rejected 3 | . 1 . . . . 1 . 1 . Data Loss (minor) 20 | . 1 6 . . . 1 6 6 . Data Loss (major) 6 | . . 2 . . . 2 1 1 . Misfires 7 | . . 5 . . . . 1 1 . Alerts 2 | . . 1 . . . . 1 . . Misdirections 4 | . . . . . . . . 4 . Weapon Failures 2 | . 1 . . . . . . 1 . Overload Shots . | . . . . . . . . . . Overflow Damage 302 | . . . . . 76 181 . 2 43 Projectiles 255 | . . . . . 76 134 . 2 43 Explosions . | . . . . . . . . . . Melee 47 | . . . . . . 47 . . . Knockbacks 24 | . 1 2 . 2 6 7 . 3 3 Impact . | . . . . . . . . . . Kinetic 23 | . 1 2 . 2 6 7 . 3 2 Secondary 1 | . . . . . . . . . 1 Self-Inflicted Damage 133 | . . . . . 94 19 . 20 . Shots 5 | . . . . . 3 1 . 1 . Rammed . | . . . . . . . . . . Targets Rammed 1 | . . . . . 1 . . . . Kicked 1 | . . . . . 1 . . . . Crushed . | . . . . . . . . . . Highest Temperature 730 | . 186 234 26 21 376 730 263 522 198 Average Temperature 116 | . 38 102 9 11 82 247 97 165 60 Received Heat Transfer 1726 | . 270 177 243 30 489 27 . 333 157 Effects 28 | . . . . . 2 21 . 5 . Shutdowns 13 | . . . . . . 8 . 5 . Energy Bleed 5 | . . . . . 2 3 . . . Interference 2 | . . . . . . 2 . . . Matter Decay 2 | . . . . . . 2 . . . Short Circuit 2 | . . . . . . 2 . . . Damage (minor) 4 | . . . . . . 4 . . . Siege Activations . | . . . . . . . . . . Martial Activations . | . . . . . . . . . . Shielding Activations . | . . . . . . . . . . Robots Disrupted . | . . . . . . . . . . Combat Hostiles . | . . . . . . . . . . Robots Corrupted 1 | . . . . . . 1 . . . Combat Hostiles 1 | . . . . . . 1 . . . Parts Fried 3 | . . . . . . 3 . . . Impact Corruptions . | . . . . . . . . . . Robots Melted 2 | . 1 . . . . 1 . . . Combat Hostiles 1 | . . . . . . 1 . . . Parts Melted 7 | . 2 . . . 4 1 . . . Heat Transferred 4028 | . 1813 . . 124 1395 696 . . . Parts Sabotaged . | . . . . . . . . . . Parts Stolen . | . . . . . . . . . . Parts Stripped . | . . . . . . . . . . Power Chain Reactions 3 | . . . . 1 1 1 . . . Alert | -11 -10 -10 -8 -7 -6 -5 -5 -5 -4 ------- Run | Yrd Mat Sub Mat Fac Fac Fac Was Fac Fac Maximum Alert Level 2 | . . . . . . . . 2 1 Low Security (%) 89 | 100 100 . 100 100 100 100 100 47 58 Level 1 5 | . . . . . . . . 13 41 Level 2 4 | . . . . . . . . 39 . Level 3 . | . . . . . . . . . . Level 4 . | . . . . . . . . . . Level 5 . | . . . . . . . . . . High Security . | . . . . . . . . . . Max Security . | . . . . . . . . . . Peak Influence 509 | . 113 . 82 51 187 136 39 509 239 Initial 235 | . . . 24 . 6 17 39 . 235 Average 75 | . 35 . 22 8 77 36 3 264 182 Influence Increases 3111 | . 409 70 179 111 554 403 14 1108 263 Destroy 0b10 Robot/C 1600 | . 300 40 120 60 360 160 . 480 80 Destroy 0b10 Robot/NC 115 | . 15 . 10 . 40 20 . 30 . Destroy Leader 380 | . 76 . 32 30 102 34 . 96 10 Allied During Kill 412 | . . . . . . . . 412 . Disable Machine 240 | . 15 . 15 15 30 90 . 15 60 Destroy Structure 229 | . 3 . 2 6 22 84 14 60 38 Lose Combat Pursuer 135 | . . 30 . . . 15 . 15 75 Influence Decreases 3063 | . 409 22 227 97 531 326 128 626 697 Entered New Map 374 | . . . 24 . 8 20 75 . 247 Time Decay 1784 | . 359 2 173 97 298 226 53 306 270 Lost Part 625 | . 50 20 30 . 225 80 . 40 180 Lost Ally 280 | . . . . . . . . 280 . Squads Dispatched 44 | . 4 . 3 5 17 4 . 8 3 Investigation 4 | . 2 . . . . 1 . 1 . Extermination 10 | . . . . 2 2 2 . 2 2 Reinforcement 18 | . 2 . 3 . 9 1 . 2 1 Assault . | . . . . . . . . . . Garrison 12 | . . . . 3 6 . . 3 . Intercept . | . . . . . . . . . . Searches Triggered . | . . . . . . . . . . Construction Impeded . | . . . . . . . . . . Haulers Reinforced 1 | . . . . . 1 . . . . Active Scanning Responses . | . . . . . . . . . . Cargo Convoy Interrupts 1 | . . . . . 1 . . . . Stealth | -11 -10 -10 -8 -7 -6 -5 -5 -5 -4 --------- Run | Yrd Mat Sub Mat Fac Fac Fac Was Fac Fac Distress Signals 12 | . 1 . 1 . 3 1 . 2 4 Communications Jammed . | . . . . . . . . . . Distress Signals . | . . . . . . . . . . Times Spotted 164 | . 34 14 11 5 42 13 . 17 28 Peak Tracking Total 15 | . 4 4 4 1 8 5 . 4 15 Tactical Retreats 17 | . 5 2 1 1 3 1 . 1 3 Traps | -11 -10 -10 -8 -7 -6 -5 -5 -5 -4 ------- Run | Yrd Mat Sub Mat Fac Fac Fac Was Fac Fac Traps Triggered 15 | . 6 5 . . . 1 . 2 1 Indirectly . | . . . . . . . . . . Trap Hack Attempts . | . . . . . . . . . . Triggered . | . . . . . . . . . . Disarmed . | . . . . . . . . . . Reprogrammed . | . . . . . . . . . . Reused . | . . . . . . . . . . Traps Extracted . | . . . . . . . . . . Installed . | . . . . . . . . . . Triggered . | . . . . . . . . . . Machines | -11 -10 -10 -8 -7 -6 -5 -5 -5 -4 ---------- Run | Yrd Mat Sub Mat Fac Fac Fac Was Fac Fac Machines Disabled 17 | . 1 1 1 1 2 6 . 1 4 Max in Single Turn 3 | . 1 1 1 1 1 3 . 1 2 Machines Repaired . | . . . . . . . . . . Machines Dismantled . | . . . . . . . . . . Machines Sabotaged . | . . . . . . . . . . Overloaded Fab Kills . | . . . . . . . . . . Hacking | -11 -10 -10 -8 -7 -6 -5 -5 -5 -4 --------- Run | Yrd Mat Sub Mat Fac Fac Fac Was Fac Fac Machines Accessed 11 | . 3 2 . 1 . 4 . . 1 Terminals 2 | . 1 . . . . 1 . . . Fabricators 1 | . . . . . . 1 . . . Repair Stations . | . . . . . . . . . . Recycling Units 6 | . 2 . . 1 . 2 . . 1 Scanalyzers . | . . . . . . . . . . Garrison Access . | . . . . . . . . . . Total Hacks 19 | . 4 6 . 1 . 7 . . 1 Successful 14 | . 4 6 . 1 . 3 . . . Failed 5 | . . . . . . 4 . . 1 Catastrophic 1 | . . . . . . 1 . . . Database Lockouts . | . . . . . . . . . . Manual 2 | . . . . . . 2 . . . Terminals 3 | . 2 . . . . 1 . . . Fabricators 2 | . . . . . . 2 . . . Repair Stations . | . . . . . . . . . . Recycling Units 8 | . 2 . . 1 . 4 . . 1 Scanalyzers . | . . . . . . . . . . Garrison Access . | . . . . . . . . . . Terminal Hacks 9 | . 2 6 . . . 1 . . . Record 7 | . 1 5 . . . 1 . . . Alert Level 1 | . 1 . . . . . . . . Proto ID Catalog 1 | . . 1 . . . . . . . Fabricator Hacks . | . . . . . . . . . . Repair Station Hacks . | . . . . . . . . . . Recycling Unit Hacks 4 | . 2 . . 1 . 1 . . . Report Inventory 4 | . 2 . . 1 . 1 . . . Scanalyzer . | . . . . . . . . . . Garrison Access Hacks . | . . . . . . . . . . Unauthorized Hacks 1 | . . . . . . 1 . . . Terminals . | . . . . . . . . . . Fabricators 1 | . . . . . . 1 . . . Liberate 1 | . . . . . . 1 . . . Repair Stations . | . . . . . . . . . . Recycling Units . | . . . . . . . . . . Scanalyzers . | . . . . . . . . . . Garrison Access . | . . . . . . . . . . Data Cores Recovered 1 | . . . 1 . . . . . . Used . | . . . . . . . . . . Hacking Detections 4 | . . . . . . 3 . . 1 Full Trace Events 1 | . . . . . . 1 . . . Feedback Events . | . . . . . . . . . . Feedback Blocked . | . . . . . . . . . . Robot Schematics Acquired . | . . . . . . . . . . Robots Built . | . . . . . . . . . . Authchips . | . . . . . . . . . . Time . | . . . . . . . . . . Total Robot Build Rating . | . . . . . . . . . . Part Schematics Acquired . | . . . . . . . . . . Parts Built . | . . . . . . . . . . Authchips . | . . . . . . . . . . Time . | . . . . . . . . . . Total Part Build Rating . | . . . . . . . . . . Parts Repaired . | . . . . . . . . . . Time . | . . . . . . . . . . Parts Recycled . | . . . . . . . . . . Recycled Matter . | . . . . . . . . . . Retrieved Matter . | . . . . . . . . . . Retrieved Components . | . . . . . . . . . . Parts Scanalyzed . | . . . . . . . . . . Part Schematics Acquired . | . . . . . . . . . . Parts Damaged . | . . . . . . . . . . Bothacking | -11 -10 -10 -8 -7 -6 -5 -5 -5 -4 ------------ Run | Yrd Mat Sub Mat Fac Fac Fac Was Fac Fac Used RIF Installer . | . . . . . . . . . . Robots Hacked . | . . . . . . . . . . Non-combat . | . . . . . . . . . . Combat . | . . . . . . . . . . Robot Hacks Applied . | . . . . . . . . . . Relay Couplers Released 4 | . . . . . 4 . . . . Programmers 4 | . . . . . 4 . . . . Fabnet Peak Effective % . | . . . . . . . . . . Robots Rewired . | . . . . . . . . . . Allies Hacked . | . . . . . . . . . . Hacks Repelled . | . . . . . . . . . . Allies | -11 -10 -10 -8 -7 -6 -5 -5 -5 -4 -------- Run | Yrd Mat Sub Mat Fac Fac Fac Was Fac Fac Total Allies 20 | . . . . . . . 20 . . Largest Group 20 | . . . . . . . 20 20 2 Highest-Rated Group 724 | . . . . . . . 724 724 53 Highest-Rated Ally 46 | . . . . . . . 46 46 27 Total Orders . | . . . . . . . . . . Ally Attacks 154 | . . . . . . . . 154 . Total Damage 2657 | . . . . . . . . 2657 . Kills 21 | . . . . . . . . 21 . Allies Corrupted 1 | . . . . . . . . 1 . Allies Melted . | . . . . . . . . . . Intel | -11 -10 -10 -8 -7 -6 -5 -5 -5 -4 ------- Run | Yrd Mat Sub Mat Fac Fac Fac Was Fac Fac Active Infowar (turns) 5790 | . 832 117 478 651 845 1027 548 722 570 Sensors 2115 | . . . . . . 275 548 722 570 Structural 2500 | . . . 421 651 678 750 . . . T.N.C. 1559 | . . . . . . . 275 722 562 ECM 2878 | . 832 117 478 651 434 366 . . . Robot Analysis Total . | . . . . . . . . . . Derelict Logs Recovered 1 | . . 1 . . . . . . . Drone Launches . | . . . . . . . . . . Drone Recoveries . | . . . . . . . . . . Exploration | -11 -10 -10 -8 -7 -6 -5 -5 -5 -4 ------------- Run | Yrd Mat Sub Mat Fac Fac Fac Was Fac Fac Turns Passed 9330 | 68 1169 3129 482 651 937 1027 548 722 597 Spaces Moved 5023 | 57 695 1271 307 313 575 438 394 509 464 Core 21 | 21 . . . . . . . . . Treads 1125 | . . 1040 . 83 2 . . . . Legs 199 | 36 32 . . . 2 129 . . . Wheels 3658 | . 663 231 307 230 571 309 394 509 444 Hover 20 | . . . . . . . . . 20 Flight . | . . . . . . . . . . Fastest Speed 50 | 50 90 120 110 140 102 100 115 115 55 Average Speed 154 | 94 133 222 123 177 117 180 120 116 108 Slowest Speed 490 | 120 155 240 140 245 490 470 130 175 190 Overloaded Moves . | . . . . . . . . . . Propulsion Burnouts . | . . . . . . . . . . Robots Hopped . | . . . . . . . . . . Potential Cave-ins . | . . . . . . . . . . Cave-ins Triggered . | . . . . . . . . . . Exploration Rate (%) 39 | 4 96 78 38 14 21 10 96 17 18 Regions Visited 9 Branch Regions 1 Pre-discovered Areas . | . . . . . . . . . . Known Exits Taken 1 | . . . 1 . . . . . . Unknown Exits Taken 6 | 1 1 1 . 1 1 . . 1 . Scrap Searched 3 | . . 3 . . . . . . . Spaces Dug 24 | . . . . . . 3 8 6 7 Terrain Destroyed 178 | . . 53 . 6 20 40 9 30 20 Melee 22 | . . . . . . 3 8 6 5 Projectile 50 | . . . . . 2 8 1 24 15 AOE 106 | . . 53 . 6 18 29 . . . Terrain Rammed . | . . . . . . . . . . Walls Destroyed . | . . . . . . . . . . Machines Disabled . | . . . . . . . . . . Actions | -11 -10 -10 -8 -7 -6 -5 -5 -5 -4 --------- Run | Yrd Mat Sub Mat Fac Fac Fac Was Fac Fac Total 5952 | 68 830 1413 370 389 735 598 454 573 522 Wait 252 | . 32 38 3 45 43 38 28 13 12 Move 5016 | 56 694 1270 306 312 575 438 393 508 464 Hop . | . . . . . . . . . . Pick Up 124 | 6 25 13 12 5 15 31 9 4 4 Fast Attach 34 | 6 . . 4 2 5 4 2 4 7 Attach 75 | . 12 13 6 1 11 24 4 . 4 Detach 8 | . . . 1 . . 6 . . 1 Swap 50 | . 7 8 5 6 13 4 1 2 4 Drop 68 | . 2 1 7 8 18 10 6 8 8 Fire 286 | . 58 70 26 10 54 30 . 25 13 Melee 36 | . . . . . . 13 9 9 5 Ram . | . . . . . . . . . . Kick 1 | . . . . . 1 . . . . Crush . | . . . . . . . . . . Escape Stasis . | . . . . . . . . . . Rewire 2 | . . . . . . . 2 . . Trap . | . . . . . . . . . . Miscellaneous . | . . . . . . . . . . Route ------- -11/Scrapyard -10/Materials (discovered 5 exits: [*Mat x3] / [*Min] / *Sub) -10/Subcaves (discovered 3 exits: [*Mat x2] / [*Rec]) -8/Materials -7/Factory -6/Factory -5/Factory -5/Waste -5/Factory -4/Factory History --------- Turn | Location | Event 26 | -11/Scrapyard | Discovered new exit (range 16) 69 | -11/Scrapyard | Entered Materials 302 | -10/Materials | Build established: Mutant 550 | -10/Materials | Discovered new exit (range 11) 725 | -10/Materials | Discovered new exit (range 16) 863 | -10/Materials | Discovered new exit (range 5) 993 | -10/Materials | Discovered new exit (range 11) 1190 | -10/Materials | Discovered new exit (range 8) 1238 | -10/Materials | Entered Subcaves 1672 | -10/Subcaves | Core integrity fell below 50% 1748 | -10/Subcaves | Disturbed a concealed Subdweller 2146 | -10/Subcaves | Visited 4L-MR0's lab 2168 | -10/Subcaves | Found Meta Core 2339 | -10/Subcaves | Learned 2 Materials zone layouts 2385 | -10/Subcaves | Visited Clippyterm 2392 | -10/Subcaves | Learned Factory trap positions 2392 | -10/Subcaves | Learned Factory garrison access intel 2712 | -10/Subcaves | Lost 4 parts (1p3w) 2811 | -10/Subcaves | Shifting Twisted Machinery released Barrage Gun 2944 | -10/Subcaves | A swath of the cavern ceiling suddenly collapsed 2967 | -10/Subcaves | Discovered new exit (range 13) 3001 | -10/Subcaves | Curiously followed by a Cobbler waking with a query about "LVR3C" 3012 | -10/Subcaves | A swath of the cavern ceiling suddenly collapsed 3312 | -10/Subcaves | Core integrity fell below 20% 4190 | -10/Subcaves | Discovered new exit (range 13) 4315 | -10/Subcaves | Discovered new exit (range 14) 4367 | -10/Subcaves | Entered Materials 4367 | -8/Materials | Evolved 4 slots: Propulsion x2, Utility x2 4368 | -8/Materials | Identified exit to Factory 4369 | -8/Materials | Attached Meta Core, gained temporary slots: Propulsion, Utility, Weapon 4607 | -8/Materials | Met 7R-MNS 4849 | -8/Materials | Entered Factory 4849 | -7/Factory | Evolved 2 slots: Power x1, Utility x1 4850 | -7/Factory | Caught up to 7R-MNS 4850 | -7/Factory | Loaded intel: 102 trap records 4851 | -7/Factory | Loaded intel: 4 garrison access locations 4889 | -7/Factory | Build established: Scavenger-Tank 5216 | -7/Factory | Garrison activated, responded to threat 5421 | -7/Factory | Found Prototype Launcher 5422 | -7/Factory | Identified Rocket Array 5469 | -7/Factory | Discovered new exit (range 15) 5500 | -7/Factory | Entered another Factory area 5500 | -6/Factory | Evolved 2 slots: Propulsion x1, Weapon x1 5501 | -6/Factory | Caught up to 7R-MNS 5742 | -6/Factory | Garrison activated, responded to threat 6022 | -6/Factory | Cargo convoy interrupted 6026 | -6/Factory | Garrison activated, responded to threat 6037 | -6/Factory | Build established: Infiltrator-Skirmisher 6326 | -6/Factory | Lost 3 parts (1n1u1w) 6375 | -6/Factory | Discovered new exit (range 15) 6419 | -6/Factory | Core integrity fell below 50% 6437 | -6/Factory | Entered another Factory area 6437 | -5/Factory | Evolved 2 slots: Propulsion x1, Utility x1 6467 | -5/Factory | Lost 16 parts (1p8n3u4w) 6721 | -5/Factory | Build established: Infiltrator-Mutant 7356 | -5/Factory | Found Prototype Launcher 7360 | -5/Factory | Identified Tesla Bomb Launcher 7394 | -5/Factory | System corruption reached 10% 7455 | -5/Factory | Lost 5 parts (1p2n2u) 7464 | -5/Factory | Sucked down chute 7464 | -5/Factory | Entered Waste 7465 | -5/Waste | Joined by Warlord forces that had cleared the area 7740 | -5/Waste | Found Unknown Protection 7969 | -5/Waste | Discovered new exit (range 10) 7971 | -5/Waste | Build established: Scavenger-Mutant 8012 | -5/Waste | Entered Factory 8012 | -5/Factory | Accompanied by 20 allies 8362 | -5/Factory | Lost 5 allies 8618 | -5/Factory | Discovered new exit (range 11) 8674 | -5/Factory | Lost 3 parts (3n) 8734 | -5/Factory | Entered another Factory area 8734 | -4/Factory | Accompanied by 2 allies 8734 | -4/Factory | Evolved 2 slots: Power x1, Weapon x1 9078 | -4/Factory | Build established: Scavenger-Assassin 9315 | -4/Factory | Core integrity fell below 50% 9330 | -4/Factory | Core integrity fell below 20% 9331 | -4/Factory | Destroyed by P-70 Sage with Tesla Rifle Last Messages --------------- 09318_ Hcp. Storage Unit destroyed. 09319_ Acquired Tesla Rifle. 09320_ Slug penetrates Wall. 09320_ Penetrated by Slug. 09325_ Tesla Rifle destroyed. 09326_ Acquired Imp. Antigrav System. 09328_ System corrupted: Energy discharge (-1). 09329_ Slug penetrates Wall. 09329_ Penetrated by Slug. 09329_ Slug penetrates Wall. 09330_ Nuclear Reactor explodes. 09330_ P-70 Sage destroyed. 09330_ Nuclear Reactor explodes. 09330_ Imp. Antigrav System destroyed. 09330_ H-77 Assassin destroyed. 09330_ P-70 Sage destroyed. 09331_ W-44 Eye sends out distress signal. 09331_ Penetrated by Slug. 09331_ Slug penetrates Wall. 09331_ Penetrated by Slug. Map ----- +----------------------------------------------------+ | ?????????# * ????????????? | | ?????????# ###????????????????? | | ?????????+ ####??????????????????? | | ?????????# #?????????????????????? | | ?????????# #?????????????????????? | | ??????? #?????????????????????? | | ??????? #####+## ##????????????????????? | | ???????????????# =#????????????????????? | | ???????????????# ##????????????????????? | | ???????????????# #?????????????????????? | | ???????????????# #?????????????????????? | | ???????????????# #?????????????????????? | | ???????????????# #?????????????????????? | | ???????????????# #?????????????????????? | | ???????????????# #?????????????????????? | | ???????????##??# R##########????????????? | | ?????## ####T ## u w ???????????? | | ???# ???????????? | | ???# ??????????? | | ???+ ???????????? | | ???# g ????????????? | | ???? u w Ag ???????????? | | ????# ##+#####+### gp ???????????? | | ?????????????????# gh[ ???????????? | | ????????????????### =! #######??????????????? | | ????????????????# []p @ #???????????????????? | | ????????????????# ! = #???????????????????? | | ????????????????# *%| #???????????????????? | | ?????????????"" !! #???????????????????? | | ???????????? #???????????????????? | | ???????????? = ! #???????????????????? | | ????????????#### #???????????????????? | | ?????????????? #???????????????????? | | ?????????????! # " " #???????????????????? | | ????????????? ?# " " ! #???????????????????? | | ????????????????# ""G"" #???????????????????? | | ????????????????#? #???????????????????? | | ?????????????????????+########???????????????????? | | ?????????????????????????????????????????????????? | | ?????????????????????????????????????????????????? | | ?????????????????????????????????????????????????? | | ?????????????????????????????????????????????????? | | ?????????????????????????????????????????????????? | | ?????????????????????????????????????????????????? | | ?????????????????????????????????????????????????? | | ?????????????????????????????????????????????????? | | ?????????????????????????????????????????????????? | | ?????????????????????????????????????????????????? | | ?????????????????????????????????????????????????? | | ?????????????????????????????????????????????????? | +----------------------------------------------------+ Best States ------------- Heat Dissipation 64 Energy Generation 41 Energy Capacity 755 Matter Stores 300 Matter Capacity 300 Sight Range 16 Robot Scan Range 16 Terrain Scan Density 10 ECM Strength 3 Armor Coverage 600 Propulsion Shielding 33 Point Defense Rating 80 Weapon Cycling 25 Evasion (%) 63 Target Analysis 6 Recoil Reduction 2 Matter Filtering 30 Item Schematics ----------------- None Robot Schematics ------------------ None Fabricated ------------ Nothing Repaired ---------- Nothing Alien Tech Used ----------------- None Achievements -------------- None Challenges ------------ None Game ------ Seed PlexusTerrorFocus Manual? 0 Play Time 01:37:02 Cumulative 260.8 hours Start 2025.05.22 @ 19:04:49 End 2025.05.24 @ 17:46:47 Sessions 3 Manual Loads 0 Difficulty Rogue Special Mode None Game No. 391 Rogue 391 Adventurer 0 Explorer 0 Win Type - Total 1 Types 1/0/0/0/0/0/0/0/0/0 Lore% 63 Gallery% 62 Achievement% 43 Wizard Run 0 Options --------- Layout 1 ASCII 0 Keyboard 0 Movement Mouse Keybinds 0 Fullscreen 2 Font 24/Smallcaps Map View 50x35 Zoom Use 0% Tactical HUD 1 Map Filters NONE Filters NONE Steam 1 RUN: fa802daa-be65-4142-bd82-34858980e57c